{"text_format":"1","workbook":"xlsx","n_sheets":1,"sheets":["DESIGNReport"],"not_rendered":{"charts":0,"images":0,"macros":1,"external_links":0,"defined_names":6,"comments":0,"pivot_tables":0},"unopened":[],"bounds":{"document_bytes":16777216,"sheet_cells":100000,"rows_first":2000,"rows_last":500,"rows_between":2000,"halvings":0,"cell_chars":16384,"cell_head_chars":4096},"cells_cut":0,"cells_raw":0,"read":"whole","date_system":"1900"}

{"sheet":"DESIGNReport","index":0,"n_rows":740,"n_cols":4,"rows_kept":740,"cut":false,"hidden":false,"merged":[]}
[]
[]
["DIV","Name"]
["01","Julie Cleator",2,{"$f":"ROUNDUP(C4/2,0)","v":1}]
["01","Gabriele Duffy",4,2]
["01","Mel Kettle & Associates",3,2]
["01","Bannister Pty Ltd",2,1]
["01","Janette Batze",2,1]
["01","Nunukal Yuggera Aboriginal Dance Company",4,2]
["01","Heather Kelly",2,1]
["01","Spotless Facility Services Pty ltd",2,1]
["01","Sandra Borg",2,1]
["01","Mikel Gellatly",3,2]
["01","Dynamic Gift Promotions",2,1]
["01","Guymer Bailey Architects Pty Ltd",2,1]
["01","Lickity Fingers Pty Ltd",2,1]
["01","Madham Catering",2,1]
["01","Worldwide Hamilton",2,1]
["01","The Johnson Hotel Pty Ltd",4,2]
["01","Onestop Clothing and Embroidery",2,1]
["01","Clare Elizabeth Collins",2,1]
["01","Ray White Commercial (Qld)",2,1]
["01","Natalia Muszkat Photography",2,1]
["01","Ray Cash Photography Pty Ltd",2,1]
["01","Essentially Fresh",2,1]
["01","Amanda Abate",2,1]
["01","Redbank Plains State High School",2,1]
["01","Mr Jack Thornhill",2,1]
["01","Moreton Hire",2,1]
["01","Gourmet en Counter Pty Ltd",2,1]
["01","The Heartwoods",2,1]
["01","Institute of Public Administration (Victoria)",2,1]
["01","Napier & Blakeley Pty Ltd",2,1]
["01","General Outdoor Advertising Pty Ltd",4,2]
["01","Jeffery Allen",17,9]
["01","Prolab Pty Ltd",2,{"$f":"ROUNDUP(C36/2,0)","v":1}]
["01","Elizabeth Meertens",2,1]
["01","All Occasions Group",2,1]
["01","Kosta Gold & Diamonds",2,1]
["01","Stamford Plaza Brisbane",6,3]
["01","Harriet David",2,1]
["01","Marriott Resort Surfers Paradise",4,2]
["01","Katherine Morrow",4,2]
["01","Convenience Advertising",5,3]
["01","Marie Moretto",2,1]
["01","Empower Change Consulting",2,1]
["01","Public Speaking Dynamics",2,1]
["01","Coolgaree Bay Sports Bar & Bistro P/L",2,1]
["01","Todd M Philpott",2,1]
["01","Savannah Aviation",2,1]
["01","Daves Tree Lopping",2,1]
["01","Across the Waves Sports Club Inc",6,3]
["01","Jessica Hinchliffe Photography",2,1]
["01","Translational Research Institute Australia",2,1]
["01","Median Technologies Pty Ltd",6,3]
["01","Museum of Brisbane",2,1]
["01","Pamela Russell",2,1]
["01","Brown Jug",2,1]
["01","HeartCare Partners",2,1]
["01","The Coffee Club Caloundra",2,1]
["01","Value Picture Framing",4,2]
["01","KB Research",2,1]
["01","Bravo Productions",2,1]
["01","Geoff Lyons Solicitors Trust Account",2,1]
["01","Louise McLaren",6,3]
["01","David Halliday",2,1]
["01","St John Ambulance Australia Qld Ltd",2,1]
["01","Brisbane Backyard Games",2,{"$f":"ROUNDUP(C68/2,0)","v":1}]
["01","Gina Velli",4,2]
["01","Danny Watson",2,1]
["01","Glenn Austin",10,5]
["01","L Enterprises Pty Ltd",4,2]
["01","Tara Edgar",12,6]
["01","Brian's Auto Centre",2,1]
["01","Microhire (VIC/SEQ) Pty Ltd",2,1]
["01","Bidfood Australia Ltd",15,8]
["01","QIMR Berghofer Medical Research Institute",4,2]
["01","Galabid Pty Ltd",2,1]
["01","Jamdrop Cafe",2,1]
["01","All Branded Promotions Pty Ltd",2,1]
["01","News Corp Australia",2,1]
["01","Improvement Foundation (Australia) Ltd",4,2]
["01 Count",{"$f":"SUBTOTAL(3,B4:B82)","v":79}]
["02","Dementia Australia",16,{"$f":"ROUNDUP(C84/2,0)","v":8}]
["02","Regal Sportswear Pty Ltd",2,1]
["02","Liquid Learning",2,1]
["02","the Berry Cool Estate",4,2]
["02","Celebrity Speakers Australia Pty Lty",6,3]
["02","Moceanic",2,1]
["02","AM Printing Pty Ltd",2,1]
["02","ACME",2,1]
["02","Fishpond.com.au",2,1]
["02","Justice Health & Forensic Mental Health Network",2,1]
["02","Eat More Pixels Pty Ltd",14,7]
["02","Glenn Daniel",2,1]
["02","Alison Wares",2,1]
["02","Gandangara Health Services Ltd",2,1]
["02","Thelma James",2,1]
["02","Bundjalung Elders Council Aboriginal Corporation",2,1]
["02","Harris Farm",2,1]
["02","30 Second Explainer Videos",8,4]
["02","Dropbox International Unlimited Company",2,1]
["02","Appliance Online",2,1]
["02","Julie Howden",21,11]
["02","Scad Research Australia",2,1]
["02","Fresco Creative Pty Ltd",6,3]
["02","The George Naim Khattar Foundation",2,1]
["02","Designing Healthy Liveable Cities",2,1]
["02","Vanessa Burow",10,5]
["02","Focal Attractions Pty Ltd",2,1]
["02","Contact Bar & Kitchen",2,1]
["02","SPCRS 2017",2,1]
["02","Central Coast Local Health District",2,1]
["02","Clayton Newland",2,1]
["02","Jodie Ingles",2,1]
["02","The Committee for Sydney",3,{"$f":"ROUNDUP(C116/2,0)","v":2}]
["02","Winc Australia Pty Ltd",51,26]
["02","Alyce Turpin",6,3]
["02","RMIT - Designing Healthy Liveable Cities Conference",2,1]
["02","You're a Good Boy Pty Ltd T/A Burly Fellow",2,1]
["02","Mahlab Media Pty Ltd",2,1]
["02","Iron Mountain Australia Group Pty Ltd",46,23]
["02","North Sydney Harbourview Hotel",4,2]
["02","Customedia Pty Ltd",4,2]
["02","Carat Australia Media Services Pty Ltd",4,2]
["02","Marilyn Clarke",2,1]
["02","Easy Flowers",2,1]
["02","AJ Elite Pty Ltd",4,2]
["02","Campaign Monitor",30,15]
["02","Consult Media",2,1]
["02","Sarah Young",4,2]
["02","Airtrain Citylink Ltd",2,1]
["02","Legal Vision ILP Pty Ltd",2,1]
["02","Steel Bar and Grill",2,1]
["02","SkyBus",2,1]
["02","Melissa Brunner Speech Pathologist",2,1]
["02","Imprint Stategic Pty Ltd",6,3]
["02","OneGroup Legal Pty Ltd",2,1]
["02","Australian Payroll Association Pty Ltd",3,2]
["02","Crunch Events & Catering",2,1]
["02","All Trades Safety & Workwear Supplies",4,2]
["02","the Party People",2,1]
["02","02.FMAPPA.00",2,1]
["02","Airbnb Ireland",2,1]
["02","Bunches",2,1]
["02","Mister Magnets",2,1]
["02","Helping Hand Group",2,1]
["02","Hills District JRLFC&TA",2,{"$f":"ROUNDUP(C148/2,0)","v":1}]
["02","Media School Studio",2,1]
["02","Focus Infinity",20,10]
["02","Ashley Millott",2,1]
["02","Flourish Flower Merchants",2,1]
["02","James & Rebecca Nutley",2,1]
["02","Madman Printing",8,4]
["02","H.W. Frost Equipment Pty Ltd",2,1]
["02","City Plan Strategy & Development P/L",6,3]
["02","Retail Display Direct",2,1]
["02","Supercheap Auto Online",2,1]
["02","Legacy NSW Associated Clubs",2,1]
["02","Pixie & Boo Photography",5,3]
["02","Kiama Tyrepower",2,1]
["02","Ms Heilok Cheng",2,1]
["02","For Purpose",2,1]
["02","Smart Group Enterprises PL",2,1]
["02","Hatfield House Consulting",4,2]
["02","Scody Pty Ltd",6,3]
["02","Illawarra Womens Health Centre",2,1]
["02","Cessnock City Council",2,1]
["02","Marthe Follestad",4,2]
["02","Strategic Cities",2,1]
["02","Tharawal Aboriginal Corporations - TACAMS",4,2]
["02","Liquorland ( Australia ) Pty Ltd",4,2]
["02","Emily Mitchell",8,4]
["02","Tamworth Regional Council",2,1]
["02","Redback Conferencing Pty Ltd",4,2]
["02","Fundraising Research & Consulting Pty Ltd",3,2]
["02","Georgina Deal",2,1]
["02","Upstream Solutions Pty Ltd",25,13]
["02","Isentia Pty Ltd",2,1]
["02","Icare Workers Insurance",6,{"$f":"ROUNDUP(C180/2,0)","v":3}]
["02","Radio Release Pty Ltd",4,2]
["02","All Branded Promotions Pty Ltd",4,2]
["02","Maryann Khalil",2,1]
["02 Count",{"$f":"SUBTOTAL(3,B84:B183)","v":100}]
["03","Deakin Medical Group Pty Ltd",2,{"$f":"ROUNDUP(C185/2,0)","v":1}]
["03","Foster Docs Pty Ltd",2,1]
["03","Tanjil Place Medical IPN Medical Centres Pty Ltd",2,1]
["03","MAACG Medical Group Pty Ltd",2,1]
["03","Matthew Robertson",2,1]
["03","Tatura Community House Inc",2,1]
["03","Rise Psychology",2,1]
["03","St Peter's Eastern Hill",2,1]
["03","Instinct International Pty Ltd",4,2]
["03","Bare Creative - Carolyn A Browning",2,1]
["03","June's Fundraising Letter (Soar Fundraising Pty Ltd)",4,2]
["03","Safeguard Safes Pty Ltd",2,1]
["03","Pixel 3 Video Productions",6,3]
["03","Elleni Kaias",4,2]
["03","PurpleMonky",4,2]
["03","Eugene Lugg",4,2]
["03","Elizabeth Joldeski",6,3]
["03","ORIMA Research",8,4]
["03","Cheeta Teamwear",2,1]
["03","Melbourne Cricket Club",2,1]
["03","mySmart Pty Ltd",2,1]
["03","Tess Pryor",2,1]
["03","Century Inn (ex DWorld Australia)",6,3]
["03","Healthily Pty Ltd",7,4]
["03","Higher Ground Melbourne",2,1]
["03","Dr. Michael Homewood",6,3]
["03","Awards and Trophies",2,1]
["03","IMG of America Pty Ltd",2,1]
["03","Marriner Group - Princess Theatre Pty Ltd",6,3]
["03","Peanut Productions Pty Ltd",8,4]
["03","Carolyn Dimech",22,11]
["03","Zoetic Agency Pty Ltd",2,1]
["03","Andrew Scobie",11,{"$f":"ROUNDUP(C217/2,0)","v":6}]
["03","Sue Forrest",4,2]
["03","Le Page Public Relations Pty Ltd",6,3]
["03","Xin Zhen",2,1]
["03","Lynne Walker",4,2]
["03","International Consortium for Health Outcomes Measurement",4,2]
["03","S J Media Group",2,1]
["03","Marmalade Melbourne Pty Ltd",29,15]
["03","Collins Square hospitality Group Pty Ltd",2,1]
["03","Amy Christensen",2,1]
["03","Danielle Saxton",4,2]
["03","Albury Wodonga Health",2,1]
["03","Miele Australia Pty Ltd",2,1]
["03","Health Issues Centre Inc.",2,1]
["03","Charlotte Jaques",4,2]
["03","Kinfold Enterprise",4,2]
["03","Sunflowers on Collins",4,2]
["03","Laura Oakley",14,7]
["03","Victorian Aboriginal Community Controlled Health Organisation Inc",2,1]
["03","Bradman Recruitment Group Pty Ltd",8,4]
["03","M Tsianakas",2,1]
["03","City of Melbourne Bowls Club Inc",4,2]
["03","Chelsea Davidson",17,9]
["03","Katrina Elmohamad (Elizabeth)",19,10]
["03","Corporate Media Services Pty Ltd",4,2]
["03","Joanna Williamson",2,1]
["03","Benjamin & CO Jewellers",2,1]
["03","Jason Davy",2,1]
["03","Radio Release Pty Ltd",6,3]
["03","Bouncing Orange Pty Ltd",2,1]
["03","Upstream Solutions Pty Ltd",2,1]
["03","Galabid Pty Ltd",2,1]
["03 Count",{"$f":"SUBTOTAL(3,B185:B248)","v":64}]
["04","ASPECT Studios Pty Ltd",7,{"$f":"ROUNDUP(C250/2,0)","v":4}]
["04","Lyn's Mobile Dry Cleaners",2,1]
["04","Madman Printing Pty Ltd",13,7]
["04","Darren Davis t/as D2",4,2]
["04","Naomi Gilbert",2,1]
["04","Australian Institute of Urban Studies South Australia",2,1]
["04","Thyme@ The Lakes",2,1]
["04","Imelda Lynch",2,1]
["04","Carter Digital",13,7]
["04","Anangu Ngangkari Tjutaku Aboriginal Corp",2,1]
["04","The Flower Room",2,1]
["04","Health Outcomes International Pty Ltd",4,2]
["04","Mr Leslie Lew",2,1]
["04","Ms Piyanit Wijaithum",2,1]
["04","The Hackney",6,3]
["04","Jack Rabbit Signs",2,1]
["04","Grant Burge Wines Pty Ltd",2,1]
["04","SA Skydiving",2,1]
["04","Yabi Dinah Pty Ltd",2,1]
["04","Omega Picture Frames",3,2]
["04","Gravity & Other Myths Pty Ltd",2,1]
["04","Alan Obst",2,1]
["04","The Holeproofs RLK Investments Pty Ltd",2,1]
["04","Uniting Communities Inc",4,2]
["04","Brown & Co Catering",8,4]
["04","Jackson Fitzgerald",2,1]
["04","Midastone Australia Pty Ltd t/as Foley Consulting",2,1]
["04","Action Agencies",2,1]
["04","Higgins Health Psychology Pty Ltd",6,3]
["04","The Bright Print Group",8,4]
["04","Vincent Schirripa",2,1]
["04","Catherine Pearson",10,5]
["04","Mr Abdul Kajani",6,{"$f":"ROUNDUP(C282/2,0)","v":3}]
["04","Dr Cathie Forster",2,1]
["04","ValetOne Chauffeur Cars",2,1]
["04","Hire A Hubby",3,2]
["04","Zock Melon",4,2]
["04","Corporate Platters Pty Ltd",17,9]
["04","Vine Inn Barossa Community Hotel",2,1]
["04","Warequip Solutions Pty Ltd",2,1]
["04","Pineapple Media SA",2,1]
["04","Urbis Pty Ltd",4,2]
["04","Ms Barb White",10,5]
["04","Ms Bridget King",8,4]
["04","Mr Kevin McEntee",10,5]
["04","Mr John Smith",10,5]
["04","Ms Sandy Jachmann",10,5]
["04","Adelaide Primary Health Network Ltd",2,1]
["04","Fabulous Catering Pty Ltd",2,1]
["04","Dr Adrian Elliott, PhD",2,1]
["04","Melissa Middeldorp",2,1]
["04","Elizabeth Birchmore",4,2]
["04","Menzies School of Health Research",2,1]
["04","DBH Commercial Lawyers",2,1]
["04","TG Waterproofing & Roof Repairs",2,1]
["04","Manelec Retirement Fund",4,2]
["04","University of Melbourne",2,1]
["04","YMCA of South Australia Youth & Family Services Inc",4,2]
["04","Praxis Australia Ltd",5,3]
["04","Isentia Pty Ltd",2,1]
["04","Bouncing Orange Pty Ltd",4,2]
["04","Foley Consulting",2,1]
["04 Count",{"$f":"SUBTOTAL(3,B250:B311)","v":62}]
["05","Mrs Elizabeth Little",2,{"$f":"ROUNDUP(C313/2,0)","v":1}]
["05","Mrs Dianne O'Brien",2,1]
["05","Catering Essentials",2,1]
["05","Integrity Coach Lines (Aust) Pty Ltd",2,1]
["05","ABN Projects",2,1]
["05","EX Engineering Pty Ltd",2,1]
["05","Hero Engineering",2,1]
["05","HS Sales",2,1]
["05","Midland Autoplus",2,1]
["05","Pharmascope P ty Ltd",2,1]
["05","Proficiency Group",2,1]
["05","Beilby Corporation Pty Ltd",6,3]
["05","Wiradjuri Ngurambang Gallery",2,1]
["05","Elizabeth Harris",2,1]
["05","Vince Monterosso",2,1]
["05","Lily Vizzari",2,1]
["05","NET 101",2,1]
["05","PCYC Fremantle",4,2]
["05","Sustain Australia",3,2]
["05","Michael Osorio",2,1]
["05","Sue Valentine",2,1]
["05","WA Bar Association",2,1]
["05","Silverstream Wines",3,2]
["05","Chengkun Hong",6,3]
["05","Iron Mountain Australia Group PL",6,3]
["05","Corporate Health Professionals",2,1]
["05","Nick Nation",3,2]
["05","Royal Melb Institute of Technology",2,1]
["05","Mrs Dinah Brooker",2,1]
["05","Jodie Norwell",2,1]
["05","Orlando Media",2,1]
["05","Mrs Anne Grimshaw",2,1]
["05","Mrs Judy Leeds",2,{"$f":"ROUNDUP(C345/2,0)","v":1}]
["05","Mrs Dianna Splatt",2,1]
["05","AV Partners",2,1]
["05","Initiative Media Australia",184,92]
["05","The Nintirri Centre",2,1]
["05","Sign On Group Pty Ltd",2,1]
["05","TASA Australia",2,1]
["05","Shire of Cue",2,1]
["05","Hotel Grand Chancellor -Hobart",4,2]
["05","Carolyn Knowles",4,2]
["05","Proweld Constructions",2,1]
["05","APN Outdoor Pty Ltd",2,1]
["05","iTalk Travel North Perth",2,1]
["05","Grace Farm",6,3]
["05","Hush Designed Dress Hire Boutique",2,1]
["05","City Of Wanneroo",2,1]
["05","ADMA",2,1]
["05","Auscorp IT",2,1]
["05","Design Senses Graphics & Web",2,1]
["05","PT Powdercoaters & Sandblasting Services",2,1]
["05","Soft Landing Mattress Recycling",2,1]
["05","The Red Chair",9,5]
["05","Dumbartung Aboriginal Corporation",2,1]
["05","Shire ofMerredin",2,1]
["05","Dulcie Fernandez",2,1]
["05","Catholic Agricultural College",2,1]
["05","Magic Cottage",2,1]
["05","R-Group International",2,1]
["05","Wellstead Community Resource Centre",2,1]
["05","Miss Faye Wills",2,1]
["05","Shania Gardiner",2,1]
["05","Emily Davey",8,4]
["05","ADVANS Exhibition Services",2,{"$f":"ROUNDUP(C377/2,0)","v":1}]
["05","AMCOS Ltd",2,1]
["05","Entraineur Pty Ltd",2,1]
["05","Ms Zolas Hayes",4,2]
["05","Geraldine Meyer",2,1]
["05","Margaret Johnson",2,1]
["05","Felicity Sewell",2,1]
["05","Ebiquity Pty Ltd",6,3]
["05","Sam Koncurat",2,1]
["05","Bernadette O'Brien",6,3]
["05","Yaandina Family Centre Inc.",2,1]
["05","Givergy (AUS) Pty Ltd",6,3]
["05","All Branded Promotions Pty Limited",3,2]
["05","Joseph Dunn",2,1]
["05","Karratha Central Healthcare",3,2]
["05","Perth Theatre Trust",4,2]
["05","BJ's Garden Maintenance",2,1]
["05","World Congress on Public Health 2017",5,3]
["05","Thalanyji Service Stations",42,21]
["05","Plantwood Landscapes",2,1]
["05","Bombora Publishing Pty Ltd",2,1]
["05","Health at Work",2,1]
["05","Leishman Associates",2,1]
["05","Lisa Rooke",4,2]
["05 Count",{"$f":"SUBTOTAL(3,B313:B400)","v":88}]
["06","Mekina Technologies Pty Ltd",4,{"$f":"ROUNDUP(C402/2,0)","v":2}]
["06","Eduka Solutions Pty Ltd",2,1]
["06","Sprout Labs",2,1]
["06","Australian Super Pty Ltd",2,1]
["06","Winc.",28,14]
["06","Mary Gays",2,1]
["06","Lyreco Pty Ltd",4,2]
["06","Higgins Health Consulting",2,1]
["06","Fairfax Media - The Advocate",15,8]
["06","Fairfax Media - The Examiner",15,8]
["06","Rob Johns",2,1]
["06","Australian Ethical Superannuation",2,1]
["06","Institute of Managers and Leaders",4,2]
["06","Bruce Ransley",16,8]
["06","Mr Ken Clayton",2,1]
["06","Health at Work",2,1]
["06 Count",{"$f":"SUBTOTAL(3,B402:B417)","v":16}]
["07","Designing Healthy Liveable Cities Conference",2,{"$f":"ROUNDUP(C419/2,0)","v":1}]
["07","Just Badges",2,1]
["07","CBD College Pty Ltd",4,2]
["07","Murali Rangachari T/a MANA Catering Solutions",4,2]
["07","Pro Bono Australia",2,1]
["07","Dr Jennifer Yu",2,1]
["07","Richard Tuffin - AtRTPhotos",2,1]
["07","Avenue sound/light/stage",2,1]
["07","Capital Region Muscular Dystrophy",2,1]
["07","Neil Winmar",2,1]
["07","@ The Mint Pty Ltd",2,1]
["07","Anthony Burton & Associates Pty Ltd",16,8]
["07","Black Swan Art and Design",4,2]
["07","DW Music",2,1]
["07","Pease International",2,1]
["07","Capital Chemist Garran",2,1]
["07","Woden Valley Glass Service",2,1]
["07","Executive Assistant Network",4,2]
["07","Copperhead Screen Printing P/L",2,1]
["07","Monash University",2,1]
["07","Peter Funnell Entertainment",10,5]
["07","HREXL Group Pty Ltd Trading as Sageco",2,1]
["07","Tuggeranong Community Arts Association",2,1]
["07","Deane Transport Services",4,2]
["07","Purple Zebra Design",6,3]
["07","Abode Apartment Hotels",11,6]
["07","Bombora Publishing Pty Ltd",2,1]
["07","Isentia Pty Ltd",2,1]
["07","Foley Consulting",2,1]
["07 Count",{"$f":"SUBTOTAL(3,B419:B447)","v":29}]
["08","Paula Lazzarini",2,{"$f":"ROUNDUP(C449/2,0)","v":1}]
["08","Institute for Aboriginal Development",2,1]
["08","The Association Specialists - ACRA",2,1]
["08","Fellbush Pty Ltd",2,1]
["08","Australian Associated Press",5,3]
["08","IronBark  Aboriginal Corporation",2,1]
["08","Quest Berrimah",2,1]
["08","CAM Shelving Contractors Pty Ltd",2,1]
["08","The Univeristy of Melbourne",2,1]
["08","William Mitchell - Appliance Test & Tag",4,2]
["08","Phillip John Walcott Pty Ltd",2,1]
["08","R & L Oakpord",2,1]
["08","Natasha Murray",12,6]
["08","Better Boards Australasia",2,1]
["08","Symmetry Australia",6,3]
["08","Leishman Associates",3,2]
["08 Count",{"$f":"SUBTOTAL(3,B449:B464)","v":16}]
["09","Adriana Finadri",2,{"$f":"ROUNDUP(C466/2,0)","v":1}]
["09","Sarah McPherson",4,2]
["09","Baldivis Gardens PS",2,1]
["09","Erik Eriksson",2,1]
["09","Homestead Coffee Lounge",2,1]
["09","Queensland Ambulance Service",2,1]
["09","Traralgon (Kosciuszko Street) Primary School",2,1]
["09","Lisa Rooke",2,1]
["09","Vamshi Madisetty",2,1]
["09","Wallumbilla State School",2,1]
["09","Jack H Annett",4,2]
["09","Transcript Divas Australia",5,3]
["09","Nature Pty Ltd",5,3]
["09","U1 Group Pty Ltd",5,3]
["09","Madman Printing Pty Ltd - MMP Print",11,6]
["09","Hourigan International",28,14]
["09","Corporate Catering by Mr Cappuccino",2,1]
["09","Julia Medew",4,2]
["09","Cancer Council Tasmania",2,1]
["09","Chris Miers",2,1]
["09","Elevate Fundraising Pty Ltd",2,1]
["09","Suggamumma",2,1]
["09","Therapy Cafe & Catering",2,1]
["09","JASCO Consulting P/L",4,2]
["09","Immediacy Pty Ltd",4,2]
["09","Yvonne Hartwell",4,2]
["09","Metis Pathways - K M McCarthy",6,3]
["09","Rhett Preston",6,3]
["09","Deanne Cassidy",12,6]
["09","Kylie Vernooy",15,8]
["09","Unity4 Contact Centre Outsourcing Pty Ltd",22,11]
["09","Condura Pty Ltd",2,1]
["09","CBRE (V) Pty Ltd",14,7]
["09","Adairs CHN",2,1]
["09","Adcorp Australia Limited",2,1]
["09","CareerTrackers Indigenous",2,1]
["09","Julie Howes",2,1]
["09","Calderwood Christian School",2,1]
["09","Deepend Melbourne Pty Ltd",17,9]
["09","MCS Consultants Pty LTd",4,2]
["09","Takysha Brennan",2,1]
["09","Tony Stanton",2,1]
["09","Kaoss Kafe",5,3]
["09","Salvatores Cafe (SXW Pty Ltd)",2,1]
["09","Ellicon Fine Printers",4,2]
["09","Terella Rosen",4,2]
["09","Bush Ghoodhu - Wongutha Tours",2,1]
["09","Alex Axais",4,2]
["09","Fran Mayall",4,2]
["09","Scoop Nutrition - Cote 2 Coast Pty Ltd",8,4]
["09","Ampersand International Pty Ltd - Sydney",65,33]
["09","Anthony Okely",2,1]
["09","Snap Cairns",2,1]
["09","Alicia Barry",7,4]
["09","Filed Officer - Alicia Barry JRFH",16,8]
["09","North West Hospital and Health Service - Mount Isa Hospital",5,3]
["09","Semrush CY Ltd",2,1]
["09","Tealium, Inc",4,2]
["09","Muffin Break - Brown Ranger Pty Ltd",2,1]
["09","DeeBee Catering",3,2]
["09","Akolade Pty Ltd",4,2]
["09","Six Degrees Executive (NSW) Pty Ltd",26,13]
["09","HR Partners, a Randstad Company",2,1]
["09","Studio Binocular Pty Ltd",4,2]
["09","Anna Peeters",2,{"$f":"ROUNDUP(C530/2,0)","v":1}]
["09","Lucy Blazincic - Flinders Medical Centre",4,2]
["09","Cuisine by Angela",2,1]
["09","Harry's Cafe",2,1]
["09","Singleton Public School",2,1]
["09","Michael Corden",4,2]
["09","Improvement Foundation (Australia) Ltd",12,6]
["09","Catalyst Graphics Pty Ltd",2,1]
["09","DK Advertising",4,2]
["09","Goornong Primary School",2,1]
["09","Andrew Maiorana",2,1]
["09","John Winters",4,2]
["09","General Manager Walking - Kay Richards",22,11]
["09","Green Mango Cafe",2,1]
["09","Trent Sleeman",7,4]
["09","Dormakaba Australia Pty Ltd",2,1]
["09","Favley Electrical Pty Ltd",2,1]
["09","Royal Melbourne Institute of Technology",3,2]
["09","Alana Pirrone",20,10]
["09","Abacus Rent It",2,1]
["09","Davidson HR Consulting Pty Ltd",2,1]
["09","Mcorp Consulting Pty Ltd",4,2]
["09","Redback Conferencing Pty Ltd",4,2]
["09","Australian Council for Health Physical Education &Recreation",2,1]
["09","HS Caterer Pty Ltd",4,2]
["09","David Blackman - Australian Society for Indigenous Languages",2,1]
["09","Boab Health Services",2,1]
["09","Demos Property Services (Aust) Pty ltd",2,1]
["09","Bennett & Philp Pty Ltd",16,8]
["09","Caroline Mulcahy - General Manager Transformation",24,12]
["09","Behaviour Change - The Shannon Company",47,24]
["09","Girraway Ganyi Consultancy Pty Ltd",6,3]
["09","The Adapt Group",44,22]
["09","Della's Group Pty Ltd",3,2]
["09","Aroma Cafe Fiona Stanley Hospital",5,3]
["09","Jessie Porter",2,1]
["09","Luke Andrews",2,1]
["09","Kay Richards",11,6]
["09","Icon Agency",2,1]
["09","Jamdrop Cafe",2,1]
["09","Essence Catering",4,2]
["09","Orange Aboriginal Medical Service",6,3]
["09","MNHHS - Prince Charles Hospital",7,4]
["09","South Metropolitan Health Service - Fiona Stanley Hospital",8,4]
["09","WA Country Health Service - Broome Hospital - Kimberley",8,4]
["09","North Metropolitan Health Service - Sir Charles Gairdner H",10,5]
["09","St John Vianney's Primary School",2,1]
["09","Clare Saunders",2,1]
["09","Ampersand International Melbourne Pty Ltd",4,2]
["09","Think Media and Marketing",2,1]
["09","iMedical Trust",4,2]
["09","Virtually Essential",26,13]
["09","Madman Printing - MMP Print",2,1]
["09","Jacqueline Foy",2,1]
["09","The Growth Faculty",3,2]
["09","Icare Workers Insurance",4,2]
["09","Gabrielle Schroder",2,1]
["09","Smart Thing limited",2,1]
["09","Tableau international, U.C.",2,1]
["09","Telstra Corporation - a/c 132 7543 800",25,13]
["09","Central Coast Council",2,1]
["09","City of Albany",2,1]
["09","Clarence City Council",2,1]
["09","Coorong District Council",2,1]
["09","Moorabool Shire Council",2,{"$f":"ROUNDUP(C594/2,0)","v":1}]
["09","Mount Barker District Council",2,1]
["09","Toowoomba regional Council",2,1]
["09","Torres Shire Council",2,1]
["09","City of Playford",4,2]
["09","Yarriambiack Shire Council",4,2]
["09","Western NSW Local Health District - Orange Health Service",8,4]
["09","Okta, Inc",2,1]
["09","Directioneering Pty Ltd",2,1]
["09","Emily Banks",2,1]
["09","Jarrod Leggett",12,6]
["09","Event Workforce Group",18,9]
["09","Taylor & Holmes Fine Food Catering",4,2]
["09","Cairns & Hinterland Hospital & Health Service",8,4]
["09","Philippa Moore",14,7]
["09","East Metropolitan Health Service - Royal Perth Hospital",14,7]
["09","Fergus Leicester",2,1]
["09","A1 Partitions (Vic) Pty Ltd",4,2]
["09","Elevate Fundraising Pty Ltd",6,3]
["09","Computers Now Pty Ltd",23,12]
["09","Directioneering Victoria Pty Ltd",11,6]
["09","Asgard Superannuation",2,1]
["09","Jonathan Macleay",2,1]
["09","MNHHS - Royal Brisbane & Women's Hospital",4,2]
["09","Gabi Petrilli",4,2]
["09","News Corp Australia",2,1]
["09","National Media & Strategic Communications Manager",28,14]
["09","Universal Magazines",3,2]
["09","Fundraising Research & Consulting Pty Ltd",2,1]
["09","Knowledge Based Research Recruitment Pty Ltd",2,1]
["09","Jaimi Bailey",4,2]
["09","WA Country Health Service - Goldfields - Kalgoorlie",8,4]
["09","Top End Health Service - Royal Darwin Hospital",8,4]
["09","Kate Nancarrow",35,18]
["09","Cyntia Payne",13,7]
["09","Dymocks / Trillian Books Pty Ltd",2,1]
["09","Loud and Clear Creative Pty Ltd",12,6]
["09","Dr Tina Lambert",2,1]
["09","Australian Institute of Company Directors",2,1]
["09","Noble Ambition",20,10]
["09","Amanda Roach Design Pty Ltd",45,23]
["09","Alice Tay",2,1]
["09","Craig Sillitoe Photography",6,3]
["09","National Project Manager - Lighthouse project",28,14]
["09","Inkify Media",7,4]
["09","Radio Release Pty Ltd",10,5]
["09","1300 Australia Pty Ltd",32,16]
["09","Incentive Planners - Jennifer Dobbin",34,17]
["09","Tina Wall",7,4]
["09","Engine Room Productions",4,2]
["09","Penny Newland",17,9]
["09","Mikaela O'Brien",27,14]
["09","Anthea Burns",40,20]
["09","Russell Kennedy Pty Ltd",16,8]
["09","Sydney Minibus Hire",2,1]
["09","Data Runs Deep Pty Ltd",4,2]
["09","Calcon Communications Pty Ltd",2,1]
["09","Fairfax Media publications Pty Limited",3,2]
["09","Jenny Deague (Playford)",16,8]
["09","Department of Family and Community Services",2,1]
["09","Julie Lawrence",2,1]
["09","Lia Rebecca Shaw",6,3]
["09","The North Queensland Newspaper Company Pty Ltd",2,1]
["09","The West Classifieds",2,1]
["09","Living Stories",4,{"$f":"ROUNDUP(C658/2,0)","v":2}]
["09","RACV Club Melbourne",2,1]
["09","New Horizons Learning Centre (Melbourne) Pty Ltd",2,1]
["09","Reitai Minogue",7,4]
["09","Janelle Whittle",2,1]
["09","Pixie and Boo Photography",2,1]
["09","Samantha Bell",2,1]
["09","Georgina Deal",13,7]
["09","Colliers International Holdings (Australia)",4,2]
["09","All Branded Group Pty Ltd",16,8]
["09","Will and Word Communications Pty ltd",6,3]
["09","Gangi Electrics Pty Ltd",2,1]
["09","Filed Officer JRFH",22,11]
["09","Antony Haddrick",4,2]
["09","Veer West LLC",4,2]
["09","Glider Systems Pty Ltd",5,3]
["09","The CBD Storage Place",23,12]
["09","Xpand Group Pty Limited",27,14]
["09","Hepburn Primary School",2,1]
["09","Ben Wee",2,1]
["09","Davidson Executive and Boards",9,5]
["09","Adecco Australia Pty Ltd",2,1]
["09","Solutions Outsourced Pty Ltd",2,1]
["09","Aboriginal Insights (Jolleen Hicks)",9,5]
["09","Grace Daley",31,16]
["09","Watkins Property Services Pty Ltd",2,1]
["09","St James' Anglican School",6,3]
["09","RM Marketing Services",10,5]
["09","Elcom Technology Pty Ltd",22,11]
["09","LooksFresh Photography",2,1]
["09","Montana-Rose Tozer-Chahine",2,1]
["09","Murray Valley Private Hospital",2,1]
["09","Field Officer JRFH",16,8]
["09","All Branded Promotions Pty Ltd",17,9]
["09","Field Officer JRFH",22,11]
["09","National Programs Manager - Health",28,14]
["09","ME2 Systems LLC",2,1]
["09","Australia Wide Taxation & Payroll Training",2,1]
["09","Global Rev Gen Pty Ltd",2,1]
["09","Health at Work Pty Ltd",24,12]
["09","Professor Josephine Forbes",2,1]
["09","Superfluid Solutions Pty Ltd",38,19]
["09","Cadman Editing Services",4,2]
["09","Bowen State School P&C Tuckshop",2,1]
["09","Cargo Line International",2,1]
["09","Bambora Online Pty Ltd",40,20]
["09","Clapham Primary School",2,1]
["09","Moulis Legal Pty Ltd",15,8]
["09","Angela Lo Sordo",2,1]
["09","Chandini Devasahayam",2,1]
["09","Dominique Ludlow",2,1]
["09","Jayne Martin",2,1]
["09","Karen Grainger",2,1]
["09","Kay Schubach",2,1]
["09","Liz Dorizac",2,1]
["09","Maryann Khalil",2,1]
["09","Sarah Hytner",2,1]
["09","Good2Give",4,2]
["09","Helen Barnard",8,4]
["09","Merrill Martin",22,11]
["09","Mount Lewis Primary School",2,1]
["09","Optimizely",2,1]
["09","Reflex Films Australia",2,1]
["09","Koala Corner Children's Centre",2,1]
["09","Parkerville Primary School",4,{"$f":"ROUNDUP(C722/2,0)","v":2}]
["09","Accumedia Pty Ltd t/a Global Red",2,1]
["09 Count",{"$f":"SUBTOTAL(3,B466:B723)","v":258}]
["Grand Count",{"$f":"SUBTOTAL(3,B4:B723)","v":712}]
[]
[]
[]
["Duplicate Invoice Count",{"$f":"COUNTConditionColorCells($B$2:$B$723,B728)","v":{"$error":"#VALUE!"}}]
[]
["1 Invoice",{"$f":"COUNTIF($D$4:$D$723,\"=1\")","v":413}]
["2 Invoices",{"$f":"COUNTIF($D$4:$D$723,\"=2\")","v":123}]
["3 Invoices",{"$f":"COUNTIF($D$4:$D$723,\"=3\")","v":51}]
["4 Invoices",{"$f":"COUNTIF($D$4:$D$723,\"=4\")","v":26}]
["5-10 Invoices",{"$f":"COUNTIFS($D$4:$D$723,\">4\",$D$4:$D$723,\"<11\")","v":59}]
["11-20 Invoices",{"$f":"COUNTIFS($D$4:$D$723,\">10\",$D$4:$D$723,\"<21\")","v":32}]
["21-30 Invoices",{"$f":"COUNTIFS($D$4:$D$723,\">20\",$D$4:$D$723,\"<31\")","v":6}]
["31-40 Invoices",{"$f":"COUNTIFS($D$4:$D$723,\">30\",$D$4:$D$723,\"<41\")","v":1}]
[">41 Invoices",{"$f":"COUNTIFS($D$4:$D$723,\">40\")","v":1}]
["Total Invoices",{"$f":"SUM(B731:B739)","v":712}]